Workbook

Sheet Part-A
B1: Part A - District-Level Information | F1: School District Name | G1: Greene Central School District
F2: BEDS Code | G2: 080601
F3: School Year | G3: 2018-19
B4: I) Contact Information
E5: Mailing Address
B6: Contact First & Last Name | C6: Mark A. Rubitski | E6: Street Address Line 1 | G6: 40 S. Canal Street
B7: Title of Contact | C7: Business Manager | E7: Street Address Line 2
B8: Email Address | C8: mrubitsk@greenecsd.org | E8: City | G8: Greene
B9: Phone Number | C9: (607)656-9204 | E9: Zip Code | G9: 13778
B11: II) Total Amount of District Spending Allocated to Individual Schools
D12: Funding Source
B13: A) Total Major Operating Funds Spending | C13: Total Spending | D13: State/Local | E13: Federal
B14: General Fund Total Expenditures & Transfers | C14: 26448955 | D14: 26448955 | E14: 0
B15: Special Aid Fund Total Expenditures & Transfers | C15: 823521 | D15: 123521 | E15: 700000
B16: School Food Services Fund Total Expenditures & Transfers | C16: 600450 | D16: 270200 | E16: 330250
B17: Debt Service Fund Total Expenditures & Transfers | C17: 0 | D17: 0 | E17: 0
B18: Total Major Operating Funds Spending | C18: =SUM(C14:C17) -> 27872926 | D18: =SUM(D14:D17) -> 26842676 | E18: 1030250
D20: Funding Source
B21: B) Exclusions for Non-Instructional Costs | C21: Total Spending | D21: State/Local | E21: Federal
B22: Interfund Transfers | C22: 351163 | D22: 351163 | E22: 0
B23: Debt Service | C23: 4049842 | D23: 4049842 | E23: 0
B24: School Food Services Fund | C24: 600450 | D24: 265600 | E24: 334850
B25: Community Services | C25: 13500 | D25: 13500 | E25: 0
B26: Adult/Continuing Education | C26: 71550 | D26: 71550 | E26: 0
B27: Transportation | C27: 1143967 | D27: 1143967 | E27: 0
B28: Employee Benefits Allocated to Above Purposes (see IV below) | C28: 445787 | D28: 445787 | E28: 0
B29: Total Non-Instructional Cost Exclusions | C29: =SUM(C22:C28) -> 6676259 | D29: =SUM(D22:D28) -> 6341409 | E29: 334850
D31: Funding Source
B32: C) Exclusions for Tuition/Payments to Non-District Schools | C32: Total Spending | D32: State/Local | E32: Federal | F32: Total Pupils
B33: Charter School Tuition | C33: 0 | D33: 0 | E33: 0 | F33: 0
B34: Services Provided to Charter Schools | C34: 0 | D34: 0 | E34: 0 | F34: 0
B35: Other School Districts (Excl. Special Act Districts) | C35: 20000 | D35: 20000 | E35: 0 | F35: 2
B36: Prekindergarten Community-Based Organizations | C36: 0 | D36: 0 | E36: 0 | F36: 0
B37: BOCES Instructional Programs (Full-time Only) | C37: 2074655 | D37: 2040217 | E37: 0 | F37: 90
B38: SWD School Age-School Year Tuition | C38: 0 | D38: 0 | E38: 0 | F38: 0
B39: SWD Early Intervention Program Tuition | C39: 0 | D39: 0 | E39: 0 | F39: 0
B40: SWD - Preschool Education (§4410) Tuition | C40: 0 | D40: 0 | E40: 0 | F40: 0
B41: SWD - Summer Education (§4408) Tuition | C41: 105000 | D41: 105000 | E41: 0 | F41: 15
B42: State-Supported Schools for the Blind & Deaf (§4201) Tuition | C42: 0 | D42: 0 | E42: 0 | F42: 0
B43: Services Provided to Nonpublic Schools | C43: 316000 | D43: 316000 | E43: 0 | F43: 1
B44: Total Tuition/Payments to Non-District Schools Exclusions | C44: =SUM(C33:C43) -> 2515655 | D44: =SUM(D33:D43) -> 2481217 | E44: =SUM(E33:E43) -> 0 | F44: =SUM(F33:F43) -> 108
B46: Total Exclusions | C46: =SUM(C29,C44) -> 9191914 | D46: =SUM(D29,D44) -> 8822626 | E46: =SUM(E29,E44) -> 334850
B48: D) Projected 2018-19 Enrollment
B49: Total District K-12 Enrollment | C49: 905
B50: Total District Pre-K Enrollment | C50: 30
B51: Total Preschool Special Education Enrollment | C51: 0
B52: Total District Enrollment | C52: =SUM(C49:C51) -> 935
B54: Total Funding Allocated to Individual Schools | C54: =C18-C46 -> 18681012 | D54: =D18-D46 -> 18020050 | E54: =E18-E46 -> 695400
B55: Total Allocated Funding per Pupil | C55: =IFERROR(C54/$C$52,"") -> 19979.69198 | D55: =IFERROR(SUM(D54)/SUM($C$52),"") -> 19272.78075 | E55: 743.7433155
B57: III) Central District Costs Included in School Allocations
D58: Funding Source | F58: Total Staff
B59: A) General Support Costs | C59: Total Spending | D59: State/Local | E59: Federal | F59: (FTE Basis)
B60: Board of Education | C60: 18490 | D60: 18490 | E60: 0 | F60: 0.2
B61: Central Personnel | C61: 709979 | D61: 709979 | E61: 0 | F61: 7
B62: Operation and Maintenance of Plant | C62: 1284100 | D62: 1284100 | E62: 0 | F62: 18
B63: Other Central Services | C63: 1475117 | D63: 1475117 | E63: 0 | F63: 3
B64: Employee Benefits for General Support Staff (see IV below) | C64: 519164 | D64: 519164 | E64: 0
B65: Total General Support Costs | C65: =SUM(C60:C64) -> 4006850 | D65: =SUM(D60:D64) -> 4006850 | E65: 0 | F65: =SUM(F60:F63) -> 28.2
B66: Total General Support Costs per Pupil | C66: =IFERROR(C65/$C$52,"") -> 4285.40107 | D66: =IFERROR(D65/$C$52,"") -> 4285.40107 | E66: 0
D68: Funding Source | F68: Total Staff
B69: B) District Academic Support Costs | C69: Total Spending | D69: State/Local | E69: Federal | F69: (FTE Basis)
B70: Curriculum Development & Supervision | C70: 20000 | D70: 20000 | E70: 0 | F70: 0.2
B71: Research, Planning & Evaluation | C71: 0 | D71: 0 | E71: 0 | F71: 0
B72: In-Service Training | C72: 0 | D72: 0 | E72: 0 | F72: 0
B73: Employee Benefits for District Academic Support Staff (see IV below) | C73: 11300 | D73: 11300 | E73: 0
B74: Total District Academic Support Costs | C74: =SUM(C70:C73) -> 31300 | D74: =SUM(D70:D73) -> 31300 | E74: 0 | F74: =SUM(F70:F72) -> 0.2
B75: Total District Academic Support Costs per Pupil | C75: =IFERROR(C74/$C$52,"") -> 33.47593583 | D75: =IFERROR(D74/$C$52,"") -> 33.47593583 | E75: =IFERROR(E74/$C$52,"") -> 0
B77: C) Other Post-Employment Benefits (OPEB) | C77: 353210 | D77: 353210 | E77: 0
B78: Total OPEB per Pupil | C78: =IFERROR(C77/$C$52,"") -> 377.7647059 | D78: =IFERROR(D77/$C$52,"") -> 377.7647059 | E78: 0
B80: Total Central District Costs Included in School Allocations | C80: =SUM(C65,C74,C77) -> 4391360 | D80: =SUM(D65,D74,D77) -> 4391360 | E80: 0
B81: Total Central District Costs per Pupil | C81: =SUM(C66,C75,C78) -> 4696.641711 | D81: =SUM(D66,D75,D78) -> 4696.641711 | E81: 0
B83: Total Funding Allocated to Individual Schools excl. Central Costs | C83: =C54-C80 -> 14289652 | D83: =D54-D80 -> 13628690 | E83: 695400
B84: Total Allocated Funding per Pupil | C84: =IFERROR(C83/$C$52,"") -> 15283.05027
B86: IV) District Average Fringe Rate for Allocation of Employee Benefits
B87: Total Employee Benefits in General Fund & Special Aid Fund | C87: 6069265
B88: Other Post-Employment Benefits | C88: =C77 -> 353210
B89: Total Employee Benefits for Active Employees | C89: =C87-C88 -> 5716055
B90: Total Personal Service in General Fund & Special Aid Fund | C90: 10115085
B91: District Average Fringe Rate | C91: =IFERROR(C89/C90,"") -> 0.5651020234

Sheet Part-B
A1: Part B - Basic School-Level Information
A2: Number of district-operated schools: | C2: 4
A3: Does the district have local school codes? | C3: Yes
E6: Grade Span (excl. Pre-K) | G6: School Status | K6: Projected Enrollment & Demographics | Q6: Projected Staffing (FTE Basis)
A7: BEDS Code | B7: School Name | C7: Local School Code | D7: School Type | E7: Lowest Grade | F7: Highest Grade | G7: Does this school serve its full planned grade span? (Y/N) | H7: If no, is this school opening this school year? (Y/N) | I7: Is the school scheduled to close? (Y/N) | J7: If so, what year? | K7: K-12 Enrollment | L7: Pre-K Enrollment | M7: Preschool Special Ed Enrollment | N7: K-12 FRPL Count | O7: K-12 ELL Count | P7: K-12 SWD Count | Q7: Classroom Teachers w/ 0-3 Years Experience | R7: Classroom Teachers w/ More than 3 Years Experience | S7: Para- professional Classroom Staff | T7: Principals & Other Admin Staff | U7: Pupil Support Services Staff | V7: All Remaining Staff | W7: Total Staff
A8: 080601040001 | B8: Primary School | C8: 02 | D8: Elementary School | E8: K | F8: 2 | G8: Yes | I8: No | K8: 200 | L8: 30 | M8: 0 | N8: 120 | O8: 0 | P8: 3 | Q8: 3 | R8: 21 | S8: 18 | T8: 1 | U8: 2 | V8: 1 | W8: =SUM(Q8:V8) -> 46
A9: 080601040002 | B9: Intermediate School | C9: 03 | D9: Elementary School | E9: 3 | F9: 5 | G9: Yes | I9: No | K9: 215 | L9: 0 | M9: 0 | N9: 112 | O9: 0 | P9: 6 | Q9: 2 | R9: 18 | S9: 12 | T9: 1 | U9: 2 | V9: 1 | W9: 36
A10: 080601040003 | B10: High School | C10: 05 | D10: Senior High School | E10: 9 | F10: 12 | G10: Yes | I10: No | K10: 280 | L10: 0 | M10: 0 | N10: 140 | O10: 0 | P10: 33 | Q10: 3 | R10: 28 | S10: 3 | T10: 1 | U10: 3 | V10: 3 | W10: =SUM(Q10:V10) -> 41
A11: 080601040004 | B11: Middle School | C11: 04 | D11: Middle/Junior High School | E11: 6 | F11: 8 | G11: Yes | I11: No | K11: 210 | L11: 0 | M11: 0 | N11: 109 | O11: 0 | P11: 8 | Q11: 2 | R11: 19 | S11: 5 | T11: 1 | U11: 2 | V11: 3 | W11: =SUM(Q11:V11) -> 32
A12: District Total | K12: =SUM(K8:K11) -> 905 | L12: 30 | M12: 0 | N12: 481 | O12: 0 | P12: 50 | Q12: 10 | R12: 86 | S12: 38 | T12: 4 | U12: 9 | V12: 8 | W12: 155

Sheet Part-C
A1: Part C - Basic School-Level Allocations
A3: Number of district-operated schools: | C3: ='Part-B'!$C$2 -> 4
D5: School Allocation by Object (excl. Central Costs) | J5: School Allocation by Purpose (excl. Central Costs) | R5: Funding Source by School | U5: Per Pupil Allocation
D6: Personal Service | J6: General Education | L6: Special Education | N6: Instructional Support
A7: BEDS Code | B7: School Name | C7: Local School Code | D7: Classroom Teachers | E7: All Other Salaries | F7: Employee Benefits | G7: BOCES Services | H7: All Other | I7: Total Allocation by Object | J7: Grades K-12 | K7: Pre-K | L7: Grades K- 12 | M7: Preschool | N7: School Administration | O7: Instructional Media | P7: Pupil Support Services | Q7: Total Allocation by Purpose | R7: State & Local Funding | S7: Federal Funding | T7: Total Funding Source by School | U7: State & Local Funding per Pupil | V7: Federal Funding per Pupil | W7: Central District Costs | X7: Total School Allocation w/ Central District Costs | Y7: Total School Funding per Pupil
A8: =IF(ISBLANK(TableB[[#This Row],[BEDS Code]]),"",TableB[[#This Row],[BEDS Code]]) -> 080601040001 | B8: =IF(ISBLANK(TableB[[#This Row],[School Name]]),"",TableB[[#This Row],[School Name]]) -> Primary School | C8: =IF(ISBLANK(TableB[[#This Row],[Local School Code]]),"",TableB[[#This Row],[Local School Code]]) -> 02 | D8: 1642758 | E8: 680667 | F8: =IFERROR(SUM(TableC[[#This Row],[Classroom Teachers]:[All Other Salaries]])*'Part-A'!$C$91,0) -> 1312972.169 | G8: 159796 | H8: 56631 | I8: =SUM(D8:H8) -> 3852824.169 | J8: 2785770 | K8: 173521 | L8: 590441 | M8: 0 | N8: 125861 | O8: 30638 | P8: 146592 | Q8: =SUM(J8:P8) -> 3852823 | R8: 3684073 | S8: 157160 | T8: =SUM(TableC[[#This Row],[State & Local Funding]:[Federal Funding]]) -> 3841233 | U8: =IFERROR(TableC[[#This Row],[State & Local Funding]]/SUM(TableB[[#This Row],[K-12 Enrollment]:[Preschool Special Ed Enrollment]]),"") -> 16017.7087 | V8: =IFERROR(TableC[[#This Row],[Federal Funding]]/SUM(TableB[[#This Row],[K-12 Enrollment]:[Preschool Special Ed Enrollment]]),"") -> 683.3043478 | W8: =IFERROR(CentralCostperPupil*SUM(TableB[[#This Row],[K-12 Enrollment]:[Preschool Special Ed Enrollment]]),"") -> 1080227.594 | X8: =SUM(Q8,W8) -> 4933050.594 | Y8: =IFERROR(TableC[[#This Row],[Total School Allocation w/ Central District Costs]]/SUM(TableB[[#This Row],[K-12 Enrollment]:[Preschool Special Ed Enrollment]]),"") -> 21448.04606
A9: =IF(ISBLANK(TableB[[#This Row],[BEDS Code]]),"",TableB[[#This Row],[BEDS Code]]) -> 080601040002 | B9: =IF(ISBLANK(TableB[[#This Row],[School Name]]),"",TableB[[#This Row],[School Name]]) -> Intermediate School | C9: =IF(ISBLANK(TableB[[#This Row],[Local School Code]]),"",TableB[[#This Row],[Local School Code]]) -> 03 | D9: 1429246 | E9: 611002 | F9: =IFERROR(SUM(TableC[[#This Row],[Classroom Teachers]:[All Other Salaries]])*'Part-A'!$C$91,0) -> 1152948.273 | G9: 164865 | H9: 63321 | I9: =SUM(D9:H9) -> 3421382.273 | J9: 2396028 | K9: 0 | L9: 682214 | M9: 0 | N9: 165509 | O9: 30638 | P9: 146992 | Q9: =SUM(J9:P9) -> 3421381 | R9: 3252631 | S9: 157856 | T9: =SUM(TableC[[#This Row],[State & Local Funding]:[Federal Funding]]) -> 3410487 | U9: =IFERROR(TableC[[#This Row],[State & Local Funding]]/SUM(TableB[[#This Row],[K-12 Enrollment]:[Preschool Special Ed Enrollment]]),"") -> 15128.51628 | V9: =IFERROR(TableC[[#This Row],[Federal Funding]]/SUM(TableB[[#This Row],[K-12 Enrollment]:[Preschool Special Ed Enrollment]]),"") -> 734.2139535 | W9: =IFERROR(CentralCostperPupil*SUM(TableB[[#This Row],[K-12 Enrollment]:[Preschool Special Ed Enrollment]]),"") -> 1009777.968 | X9: =SUM(Q9,W9) -> 4431158.968 | Y9: =IFERROR(TableC[[#This Row],[Total School Allocation w/ Central District Costs]]/SUM(TableB[[#This Row],[K-12 Enrollment]:[Preschool Special Ed Enrollment]]),"") -> 20610.04171
A10: =IF(ISBLANK(TableB[[#This Row],[BEDS Code]]),"",TableB[[#This Row],[BEDS Code]]) -> 080601040003 | B10: =IF(ISBLANK(TableB[[#This Row],[School Name]]),"",TableB[[#This Row],[School Name]]) -> High School | C10: =IF(ISBLANK(TableB[[#This Row],[Local School Code]]),"",TableB[[#This Row],[Local School Code]]) -> 05 | D10: 1730916 | E10: 449565 | F10: =IFERROR(SUM(TableC[[#This Row],[Classroom Teachers]:[All Other Salaries]])*'Part-A'!$C$91,0) -> 1232194.225 | G10: 303865 | H10: 182794 | I10: 3899334.225 | J10: 2860490 | K10: 0 | L10: 197157 | M10: 0 | N10: 181721 | O10: 30138 | P10: 629469 | Q10: 3898975 | R10: 3696147 | S10: 212097 | T10: =SUM(TableC[[#This Row],[State & Local Funding]:[Federal Funding]]) -> 3908244 | U10: =IFERROR(TableC[[#This Row],[State & Local Funding]]/SUM(TableB[[#This Row],[K-12 Enrollment]:[Preschool Special Ed Enrollment]]),"") -> 13200.525 | V10: =IFERROR(TableC[[#This Row],[Federal Funding]]/SUM(TableB[[#This Row],[K-12 Enrollment]:[Preschool Special Ed Enrollment]]),"") -> 757.4892857 | W10: =IFERROR(CentralCostperPupil*SUM(TableB[[#This Row],[K-12 Enrollment]:[Preschool Special Ed Enrollment]]),"") -> 1315059.679 | X10: 5214034.679 | Y10: =IFERROR(TableC[[#This Row],[Total School Allocation w/ Central District Costs]]/SUM(TableB[[#This Row],[K-12 Enrollment]:[Preschool Special Ed Enrollment]]),"") -> 18621.55243
A11: =IF(ISBLANK(TableB[[#This Row],[BEDS Code]]),"",TableB[[#This Row],[BEDS Code]]) -> 080601040004 | B11: =IF(ISBLANK(TableB[[#This Row],[School Name]]),"",TableB[[#This Row],[School Name]]) -> Middle School | C11: =IF(ISBLANK(TableB[[#This Row],[Local School Code]]),"",TableB[[#This Row],[Local School Code]]) -> 04 | D11: 1175367 | E11: 667998 | F11: =IFERROR(SUM(TableC[[#This Row],[Classroom Teachers]:[All Other Salaries]])*'Part-A'!$C$91,0) -> 1041689.291 | G11: 123915 | H11: 107142 | I11: =SUM(D11:H11) -> 3116111.291 | J11: 1943662 | K11: 0 | L11: 573810 | M11: 0 | N11: 160010 | O11: 30138 | P11: 408853 | Q11: =SUM(J11:P11) -> 3116473 | R11: 2961401 | S11: 168287 | T11: =SUM(TableC[[#This Row],[State & Local Funding]:[Federal Funding]]) -> 3129688 | U11: =IFERROR(TableC[[#This Row],[State & Local Funding]]/SUM(TableB[[#This Row],[K-12 Enrollment]:[Preschool Special Ed Enrollment]]),"") -> 14101.90952 | V11: =IFERROR(TableC[[#This Row],[Federal Funding]]/SUM(TableB[[#This Row],[K-12 Enrollment]:[Preschool Special Ed Enrollment]]),"") -> 801.3666667 | W11: =IFERROR(CentralCostperPupil*SUM(TableB[[#This Row],[K-12 Enrollment]:[Preschool Special Ed Enrollment]]),"") -> 986294.7594 | X11: =SUM(Q11,W11) -> 4102767.759 | Y11: =IFERROR(TableC[[#This Row],[Total School Allocation w/ Central District Costs]]/SUM(TableB[[#This Row],[K-12 Enrollment]:[Preschool Special Ed Enrollment]]),"") -> 19536.98933
A12: District Total | D12: =SUM(D8:D11) -> 5978287 | E12: 2409232 | F12: 4739803.958 | G12: 752441 | H12: 409888 | I12: 14289651.96 | J12: 9985950 | K12: 173521 | L12: 2043622 | M12: 0 | N12: 633101 | O12: 121552 | P12: 1331906 | Q12: 14289652 | R12: 13594252 | S12: 695400 | T12: 14289652 | W12: =SUM(W8:W11) -> 4391360 | X12: =SUM(X8:X11) -> 18681012

Sheet Part-D
A1: Part D - School-Level Spending on Prekindergarten and Community Schools Programming
A3: Number of district-operated schools: | D3: ='Part-B'!$C$2 -> 4
F5: Prekindergarten Programs | O5: Student, Family, and Community Schools Programs
F6: Projected Pre-K Enrollment | K6: Projected Pre-K Funding | P6: Spending by Purpose | W6: Funding Source by Program
A7: BEDS Code | B7: School Name | C7: Local School Code | D7: Does this school offer a Pre-K program? (Y/N) | E7: Does this school offer student/family support or community schools services? (Y/N) | F7: 4-Year-Old Full-Day | G7: 4-Year-Old Half-Day | H7: 3-Year-Old Full-Day | I7: 3-Year-Old Half-Day | J7: Total Pre-K Enrollment | K7: State Grants | L7: Other State & Local Funding | M7: Federal Funding | N7: Total Pre-K Spending | O7: Community Schools Site Coordinator (FTE Basis) | P7: Enriched Academic Services | Q7: Health, Mental Health/ Counseling, Dental Care | R7: Nutrition Services | S7: Legal Services | T7: After-School Programs/ Extended Day Programs | U7: All Other | V7: Total Community Schools Spending | W7: Foundation Aid Community Schools Set-Aside | X7: Other State & Local Funding | Y7: Federal Funding
A8: =IF(ISBLANK(TableB[[#This Row],[BEDS Code]]),"",TableB[[#This Row],[BEDS Code]]) -> 080601040001 | B8: =IF(ISBLANK(TableB[[#This Row],[School Name]]),"",TableB[[#This Row],[School Name]]) -> Primary School | C8: =IF(ISBLANK(TableB[[#This Row],[Local School Code]]),"",TableB[[#This Row],[Local School Code]]) -> 02 | D8: Yes | E8: No | F8: 0 | G8: 30 | H8: 0 | I8: 0 | J8: =SUM(F8:I8) -> 30 | K8: 123521 | L8: 50000 | M8: 0 | N8: =SUM(K8:M8) -> 173521 | V8: =SUM(P8:U8) -> 0
A9: =IF(ISBLANK(TableB[[#This Row],[BEDS Code]]),"",TableB[[#This Row],[BEDS Code]]) -> 080601040002 | B9: =IF(ISBLANK(TableB[[#This Row],[School Name]]),"",TableB[[#This Row],[School Name]]) -> Intermediate School | C9: =IF(ISBLANK(TableB[[#This Row],[Local School Code]]),"",TableB[[#This Row],[Local School Code]]) -> 03 | D9: No | E9: No | J9: =SUM(F9:I9) -> 0 | N9: =SUM(K9:M9) -> 0 | V9: =SUM(P9:U9) -> 0
A10: =IF(ISBLANK(TableB[[#This Row],[BEDS Code]]),"",TableB[[#This Row],[BEDS Code]]) -> 080601040003 | B10: =IF(ISBLANK(TableB[[#This Row],[School Name]]),"",TableB[[#This Row],[School Name]]) -> High School | C10: =IF(ISBLANK(TableB[[#This Row],[Local School Code]]),"",TableB[[#This Row],[Local School Code]]) -> 05 | D10: No | E10: No | J10: =SUM(F10:I10) -> 0 | N10: =SUM(K10:M10) -> 0 | V10: =SUM(P10:U10) -> 0
A11: =IF(ISBLANK(TableB[[#This Row],[BEDS Code]]),"",TableB[[#This Row],[BEDS Code]]) -> 080601040004 | B11: =IF(ISBLANK(TableB[[#This Row],[School Name]]),"",TableB[[#This Row],[School Name]]) -> Middle School | C11: =IF(ISBLANK(TableB[[#This Row],[Local School Code]]),"",TableB[[#This Row],[Local School Code]]) -> 04 | D11: No | E11: No | J11: =SUM(F11:I11) -> 0 | N11: =SUM(K11:M11) -> 0 | V11: =SUM(P11:U11) -> 0
A12: Total in District Schools | F12: =SUM(F8:F11) -> 0 | G12: 30 | H12: 0 | I12: 0 | J12: 30 | K12: 123521 | L12: 50000 | M12: 0 | N12: 173521 | O12: 0 | P12: 0 | Q12: 0 | R12: 0 | S12: 0 | T12: 0 | U12: 0 | V12: 0 | W12: 0 | X12: 0 | Y12: 0
F15: Projected Pre-K CBO Enrollment | K15: Projected Pre-K CBO Funding
E16: # of CBO Sites | F16: 4-Year-Old Full-Day | G16: 4-Year-Old Half-Day | H16: 3-Year-Old Full-Day | I16: 3-Year-Old Half-Day | J16: Total Pre-K Enrollment | K16: State Grants | L16: Other State & Local Funding | M16: Federal Funding | N16: Total Pre-K Spending
A17: Total in Prekindergarten Community-Based Organizations | E17: 0 | J17: =SUM(F17:I17) -> 0 | N17: =SUM(K17:M17) -> 0
A19: District Total with CBOs | F19: =F12+F17 -> 0 | G19: 30 | H19: 0 | I19: 0 | J19: 30 | K19: 123521 | L19: 50000 | M19: 0 | N19: 173521

Sheet Part-E
A1: Part E - Locally Implemented Funding Formula
A2: Are schools allocated a sizeable portion of their funding via a locally implemented formula? | E2: No
A3: Number of district-operated schools: | C3: ='Part-B'!$C$2 -> 4
A7: BEDS Code | B7: School Name | C7: Local School Code | D7: Local Formula Allocation | E7: Allocation If Local Formula Fully Funded | F7: Difference | G7: % Funded | H7: Total Funding (See Part C) | I7: Local Formula as % of Total Funding | J7: Other Funding
A8: =IF(ISBLANK(TableB[[#This Row],[BEDS Code]]),"",TableB[[#This Row],[BEDS Code]]) -> 080601040001 | B8: =IF(ISBLANK(TableB[[#This Row],[School Name]]),"",TableB[[#This Row],[School Name]]) -> Primary School | C8: =IF(ISBLANK(TableB[[#This Row],[Local School Code]]),"",TableB[[#This Row],[Local School Code]]) -> 02 | F8: =D8-E8 -> 0 | G8: =IFERROR(D8/E8,"") ->  | H8: ='Part-C'!I8 -> 3852824.169 | I8: =IFERROR(D8/H8,"") -> 0 | J8: =H8-D8 -> 3852824.169
A9: =IF(ISBLANK(TableB[[#This Row],[BEDS Code]]),"",TableB[[#This Row],[BEDS Code]]) -> 080601040002 | B9: =IF(ISBLANK(TableB[[#This Row],[School Name]]),"",TableB[[#This Row],[School Name]]) -> Intermediate School | C9: =IF(ISBLANK(TableB[[#This Row],[Local School Code]]),"",TableB[[#This Row],[Local School Code]]) -> 03 | F9: =D9-E9 -> 0 | G9: =IFERROR(D9/E9,"") ->  | H9: ='Part-C'!I9 -> 3421382.273 | I9: =IFERROR(D9/H9,"") -> 0 | J9: =H9-D9 -> 3421382.273
A10: =IF(ISBLANK(TableB[[#This Row],[BEDS Code]]),"",TableB[[#This Row],[BEDS Code]]) -> 080601040003 | B10: =IF(ISBLANK(TableB[[#This Row],[School Name]]),"",TableB[[#This Row],[School Name]]) -> High School | C10: =IF(ISBLANK(TableB[[#This Row],[Local School Code]]),"",TableB[[#This Row],[Local School Code]]) -> 05 | F10: 0 | H10: ='Part-C'!I10 -> 3899334.225 | I10: 0 | J10: 3899334.225
A11: =IF(ISBLANK(TableB[[#This Row],[BEDS Code]]),"",TableB[[#This Row],[BEDS Code]]) -> 080601040004 | B11: =IF(ISBLANK(TableB[[#This Row],[School Name]]),"",TableB[[#This Row],[School Name]]) -> Middle School | C11: =IF(ISBLANK(TableB[[#This Row],[Local School Code]]),"",TableB[[#This Row],[Local School Code]]) -> 04 | F11: =D11-E11 -> 0 | G11: =IFERROR(D11/E11,"") ->  | H11: ='Part-C'!I11 -> 3116111.291 | I11: =IFERROR(D11/H11,"") -> 0 | J11: =H11-D11 -> 3116111.291
A12: District Total | D12: =SUM(D8:D11) -> 0 | E12: =SUM(E8:E11) -> 0 | F12: =D12-E12 -> 0 | G12: =IFERROR(D12/E12,"") ->  | H12: =SUM(H8:H11) -> 14289651.96 | I12: =IFERROR(D12/H12,"") -> 0 | J12: =H12-D12 -> 14289651.96

Sheet Data Validation
B1: Data Validation
B3: Part-A: District Level Information
B4: #1 | C4: Is the General Fund the largest fund? | D4: =IF('Part-A'!C14=MAX('Part-A'!C14:C17),"Pass","Fail") -> Pass
B5: Part-B: Basic School-Level Information
B6: #2 | C6: Do the separately reported enrollment totals match? | D6: =IF(D7=D8,"Pass","Fail") -> Pass
C7: Total District Enrollment (Part A) | D7: ='Part-A'!C52 -> 935
C8: Total District Enrollment (Part B) | D8: =SUM('Part-B'!K12:M12) -> 935
B9: Part-C: Basic School-Level Allocations
B10: #3 | C10: Do the reported school allocations match? | D10: =IF(AND(ROUND(D11,0)=D12,D12=D13),"Pass","Fail") -> Pass
C11: School Allocation by Object (Col I) | D11: ='Part-C'!I12 -> 14289651.96
C12: School Allocation by Purpose (Col Q) | D12: ='Part-C'!Q12 -> 14289652
C13: Total Funding Source by School (Col T) | D13: ='Part-C'!T12 -> 14289652
B14: #4 | C14: Do the separately reported funding totals match? | D14: =IF(ROUND(D15,0)=ROUND(D16,0),"Pass","Fail") -> Pass
C15: Total Funding Allocated to Individual Schools (Part A) | D15: ='Part-A'!C54 -> 18681012
C16: Total School Allocation w/ Central Costs (Part C) | D16: ='Part-C'!X12 -> 18681012
B17: #5 | C17: Are estimated employee benefits less than reported salaries? | D17: =IF(OR(D19<D18,SUM(D18:D19)=0),"Pass","Fail") -> Pass
C18: Total Salaries | D18: =SUM('Part-C'!D12:E12) -> 8387519
C19: Total Employee Benefits | D19: ='Part-C'!F12 -> 4739803.958
B20: Part-D: School-Level Spending on Pre-K and Community Schools
B21: #6 | C21: Do the separately reported Pre-K enrollment totals match? | D21: =IF(D22=D23,"Pass","Fail") -> Pass
C22: Total Pre-K Enrollment (Part B, Col H) | D22: ='Part-B'!L12 -> 30
C23: Total Pre-K Enrollment (Part D, Col K) | D23: ='Part-D'!J12 -> 30
B24: #7 | C24: Do the separately reported Pre-K funding totals match? | D24: =IF(D25=D26,"Pass","Fail") -> Pass
C25: Total Pre-K Funding (Part C, Col K) | D25: ='Part-C'!K12 -> 173521
C26: Total Pre-K Funding (Part D, Col N) | D26: ='Part-D'!N12 -> 173521
B27: Employee Benefits Validation
B28: #8 | C28: Are total employee benefits for active employees fully allocated? | D28: =IF(D29=ROUND(SUM(D30:D33),0),"Pass","Fail") -> Pass
C29: Total Employee Benefits for Active Employees (Part A, Section IV) | D29: ='Part-A'!C89 -> 5716055
C30: Employee Benefits (Part A, Section II-A) | D30: ='Part-A'!C28 -> 445787
C31: Employee Benefits (Part A, Section III-A) | D31: ='Part-A'!C64 -> 519164
C32: Employee Benefits (Part A, Section III-B) | D32: ='Part-A'!C73 -> 11300
C33: Total Employee Benefits (Part C, Col F) | D33: ='Part-C'!F12 -> 4739803.958
B34: #9 | C34: Was the district average fringe rate used to estimate employee benefits? | D34: =IF(D37=D38,"Pass","Fail") -> Pass
C35: Total Employee Benefits (Part C, Col F) | D35: ='Part-C'!F12 -> 4739803.958
C36: Total Salaries (Part C, Col D and E) | D36: =SUM('Part-C'!D12:E12) -> 8387519
C37: Calculated Fringe Rate | D37: =IFERROR(D35/D36,"") -> 0.5651020234
C38: District Average Fringe Rate | D38: ='Part-A'!C91 -> 0.5651020234

Sheet Drop-downs (hidden)
B2: School Year | D2: School Type | F2: Grades | H2: Year Closure | I2: First Year of Operations | K2: Community School? | M2: Funding Formula?
B3: 2017-18 | D3: Pre-K Only | F3: K | H3: 2018 | I3: 2015 | K3: Yes | M3: Yes
B4: 2018-19 | D4: Elementary School | F4: 1 | H4: 2019 | I4: 2016 | K4: No | M4: No
D5: Middle/Junior High School | F5: 2 | H5: 2020 | I5: 2017
D6: Junior-Senior High School | F6: 3 | H6: 2021
D7: Senior High School | F7: 4
D8: K-8 School | F8: 5
D9: K-12 School | F9: 6
D10: Other | F10: 7
F11: 8
F12: 9
F13: 10
F14: 11
F15: 12
F16: District 75
F17: Other
D23: #oxford,stinks
